bitfinex-derivatives/quotes_SOLF0:USTF0_20241203
["timestamp","ask_amount","ask_price","bid_price","bid_amount"]
[1733191387828,34.58230644,223.91,223.83,10.5545773]
[1733191388137,34.58230644,223.91,223.8,10.5545773]
[1733191388627,34.58230644,223.91,223.82,2.2336]
[1733191389134,2.2329,223.89,223.82,2.2336]
[1733191389433,34.58230644,223.91,223.82,2.2336]
[1733191389829,2.233,223.88,223.83,2.2334]
[1733191390135,2.233,223.88,223.8,10.5545773]
[1733191390832,2.2331,223.87,223.83,2.2334]
[1733191391236,2.4,223.87,223.78,2.7136]
[1733191391738,12.9545773,223.87,223.71,10.5545773]
[1733191392029,10.5545773,223.84,223.71,13.2799773]
[1733191392430,14.3229773,223.87,223.74,10.5545773]
[1733191393029,2.2336,223.82,223.74,10.5545773]
[1733191393230,2.4,223.87,223.77,10.5545773]
[1733191393636,2.2335,223.83,223.79,2.2338]
[1733191393828,2.4,223.87,223.79,2.2338]
[1733191394034,2.4,223.87,223.77,10.5545773]
[1733191394436,2.2335,223.83,223.78,2.2339]
[1733191394735,12.9545773,223.87,223.74,10.5545773]
[1733191395134,2.2338,223.8,223.76,2.2342]
[1733191395436,2.4,223.82,223.74,10.5545773]
[1733191395636,2.4,223.81,223.74,10.5545773]
[1733191395838,2.4,223.8,223.74,12.7888773]
[1733191396529,2.4,223.8,223.71,2.7254]
[1733191396728,2.4,223.8,223.65,10.5545773]
[1733191397133,2.2345,223.73,223.67,2.235]
[1733191397330,2.4,223.72,223.67,2.235]
[1733191398129,2.4,223.72,223.65,10.5545773]
[1733191398335,2.4,223.72,223.64,2.6425]
[1733191398641,2.2349,223.69,223.64,2.6425]
[1733191399146,2.4,223.72,223.64,2.6425]
[1733191399340,2.2351,223.67,223.64,2.6425]
[1733191399939,2.2349,223.69,223.63,2.2354]
[1733191400336,2.2349,223.69,223.61,10.5545773]
[1733191400337,2.4,223.72,223.61,10.5545773]
[1733191400534,2.4,223.72,223.61,12.7901773]
[1733191401743,2.4,223.72,223.61,10.5545773]
[1733191402042,2.4,223.72,223.64,10.5545773]
[1733191402742,2.2347,223.71,223.65,2.2352]
[1733191403534,2.4,223.72,223.64,10.5545773]
[1733191403740,2.4,223.73,223.64,10.5545773]
[1733191403938,2.4,223.73,223.67,10.5545773]
[1733191404942,2.4,223.73,223.69,2.2348]
[1733191405436,2.4,223.73,223.67,10.5545773]
[1733191405636,2.4,223.73,223.68,2.2349]
[1733191406036,2.4,223.73,223.69,2.2348]
[1733191406240,2.4,223.73,223.67,10.5545773]
[1733191406544,2.4,223.73,223.66,1.3717]
[1733191406737,2.4,223.73,223.66,11.9262773]
[1733191407142,2.4,223.73,223.66,10.5545773]
[1733191408344,2.4,223.73,223.65,2.6341]
[1733191408744,2.2348,223.7,223.65,2.6341]
[1733191409344,2.4,223.73,223.66,2.2351]
[1733191409640,2.4,223.73,223.66,10.5545773]
[1733191409847,2.4,223.73,223.69,10.5545773]
[1733191410549,2.4,223.73,223.65,2.6341]
[1733191410743,2.4,223.73,223.67,10.5545773]
[1733191411746,2.4,223.73,223.69,2.2348]
[1733191411945,2.4,223.77,223.67,10.5545773]
[1733191412149,2.34,223.76,223.7,10.5545773]
[1733191412352,2.34,223.77,223.72,2.2345]
[1733191414044,2.2342,223.76,223.72,2.2345]
[1733191414849,2.34,223.76,223.75,2.2342]
[1733191415054,2.34,223.79,223.75,2.2342]
[1733191415651,2.234,223.78,223.7,10.5545773]
[1733191415950,10.5545773,223.75,223.55,25.00996218]
[1733191416157,2.34,223.74,223.6,10.5545773]
[1733191416353,2.2351,223.67,223.63,2.2354]
[1733191416553,2.34,223.67,223.6,10.5545773]
[1733191417955,2.2353,223.65,223.6,10.5545773]
[1733191420059,10.5545773,223.72,223.6,10.5545773]
[1733191420259,2.235,223.68,223.6,10.5545773]
[1733191420859,2.235,223.68,223.62,2.2355]
[1733191423170,2.2352,223.66,223.61,2.2356]
[1733191423466,2.34,223.65,223.61,2.2356]
[1733191423663,10.5545773,223.72,223.61,2.2356]
[1733191423664,2.34,223.64,223.61,2.2356]
[1733191424267,4.5754,223.64,223.59,2.2358]
[1733191427467,2.34,223.64,223.56,0.3362]
[1733191427971,2.2358,223.6,223.56,0.3362]
[1733191428170,10.5545773,223.66,223.56,0.3362]
[1733191428171,2.34,223.59,223.56,0.3362]
[1733191428371,2.34,223.58,223.56,0.3362]
[1733191429376,2.34,223.58,223.57,2.2361]
[1733191432279,2.34,223.58,223.56,0.3362]
[1733191432768,2.2365,223.53,223.44,10.5545773]
[1733191432969,10.5545773,223.59,223.49,2.2368]
[1733191432970,2.34,223.52,223.49,2.2368]
[1733191433171,2.34,223.51,223.43,2.6111]
[1733191433372,2.34,223.5,223.38,10.5545773]
[1733191433571,2.34,223.49,223.38,10.5545773]
[1733191433975,4.5769,223.49,223.38,10.5545773]
[1733191434176,10.5545773,223.53,223.41,10.5545773]
[1733191434477,2.34,223.52,223.41,10.5545773]
[1733191434677,2.2367,223.51,223.45,2.2372]
[1733191434975,2.34,223.52,223.45,2.2372]
[1733191435175,2.2368,223.5,223.44,2.2373]
[1733191435769,10.5545773,223.53,223.41,10.5545773]
[1733191435770,2.34,223.49,223.41,10.5545773]
[1733191435977,2.34,223.49,223.48,0.55676]
[1733191437276,2.2366,223.52,223.48,0.55676]
[1733191437476,2.34,223.51,223.48,0.55676]
[1733191437777,4.5767,223.51,223.48,0.55676]
[1733191438879,2.34,223.51,223.48,0.55676]
[1733191441874,2.2368,223.5,223.48,0.55676]
[1733191442279,2.34,223.51,223.48,0.55676]
[1733191443083,2.2368,223.5,223.48,0.55676]
[1733191443889,2.34,223.51,223.48,0.55676]
[1733191444089,10.5545773,223.56,223.48,0.55676]
[1733191444380,2.3,223.55,223.48,0.55676]
[1733191444588,2.2369,223.49,223.48,0.55676]
[1733191444779,4.5369,223.49,223.48,0.55676]
[1733191445284,10.5545773,223.53,223.48,0.55676]
[1733191445285,10.5545773,223.56,223.48,0.55676]
[1733191445481,2.3,223.55,223.48,0.55676]
[1733191445883,2.2365,223.53,223.48,2.79366]
[1733191446081,2.3,223.52,223.48,0.55676]
[1733191447082,4.5366,223.52,223.48,0.55676]
[1733191447580,2.3,223.51,223.48,0.55676]
[1733191448675,4.5367,223.51,223.48,0.55676]
[1733191451077,10.5545773,223.56,223.48,0.55676]
[1733191451383,4.4694,223.71,223.48,0.55676]
[1733191451384,46.56,223.68,223.52,10.5545773]
[1733191451587,10.5545773,223.66,223.52,10.5545773]
[1733191451784,12.83883667,223.66,223.54,2.2364]
[1733191452189,12.83883667,223.66,223.52,10.5545773]
[1733191452389,2.236,223.58,223.53,2.2364]
[1733191452586,2.3,223.57,223.53,2.2364]
[1733191452890,2.3,223.57,223.52,10.5545773]
[1733191453078,2.3,223.57,223.56,2.2362]
[1733191453484,10.5545773,223.66,223.53,10.5545773]
[1733191453685,2.2356,223.62,223.57,2.236]
[1733191454082,2.2357,223.61,223.56,2.2361]
[1733191454290,2.3,223.6,223.53,10.5545773]
[1733191454487,2.3,223.59,223.53,10.5545773]
[1733191454681,2.3,223.58,223.53,10.5545773]
[1733191455288,2.3,223.6,223.53,10.5545773]
[1733191455489,2.3,223.6,223.56,10.5545773]
[1733191455689,2.3,223.6,223.58,1.419]
[1733191455891,2.3,223.6,223.58,3.6549]
[1733191456488,2.3,223.6,223.58,1.419]
[1733191457089,2.2359,223.59,223.54,2.2363]
[1733191457285,2.3,223.6,223.5,11.9735773]
[1733191457988,2.236,223.58,223.53,2.2364]
[1733191458188,2.3,223.6,223.5,1.419]
[1733191458389,12.8545773,223.6,223.5,1.419]
[1733191458992,2.2363,223.55,223.5,3.6557]
[1733191459296,12.8545773,223.6,223.5,3.6557]
[1733191459297,2.3,223.54,223.5,3.6557]
[1733191459597,2.3,223.53,223.5,3.6557]
[1733191459791,2.3,223.52,223.5,3.6557]
[1733191462493,2.2368,223.5,223.48,0.55676]
[1733191462697,2.3,223.52,223.48,0.55676]
[1733191465299,2.3,223.52,223.44,2.2373]
[1733191465492,2.237,223.48,223.44,2.2373]
[1733191465698,2.3,223.47,223.44,2.2373]
[1733191467198,2.3,223.47,223.42,2.6588]
[1733191468606,2.2374,223.45,223.42,2.6588]
[1733191470304,4.5371,223.47,223.42,15.4508773]
[1733191470808,1.2904,223.58,223.45,10.5545773]
[1733191471008,2.3,223.57,223.45,10.5545773]
[1733191471512,2.3,223.56,223.48,10.5545773]
[1733191472301,2.3,223.56,223.42,13.2133773]
[1733191472701,2.3,223.56,223.44,2.2373]
[1733191472702,2.237,223.48,223.44,2.2373]
[1733191473007,2.26,223.47,223.42,13.2133773]
[1733191473209,2.26,223.46,223.42,13.2133773]
[1733191473409,10.5545773,223.57,223.42,13.2133773]
[1733191473607,2.26,223.56,223.45,10.5545773]
[1733191473807,2.2367,223.51,223.46,2.2371]
[1733191474115,10.5545773,223.57,223.46,2.2371]
[1733191474116,2.26,223.5,223.46,2.2371]
[1733191474314,2.26,223.49,223.46,2.2371]
[1733191474506,2.26,223.48,223.46,2.2371]
[1733191475610,2.2367,223.51,223.46,2.2371]
[1733191475611,10.5545773,223.6,223.49,2.2368]
[1733191475810,2.26,223.59,223.49,2.2368]
[1733191476405,2.2365,223.53,223.49,2.2368]
[1733191476713,2.26,223.52,223.5,2.2367]
[1733191477115,2.6916,223.65,223.49,10.5545773]
[1733191477310,2.26,223.64,223.54,2.2363]
[1733191477509,2.26,223.64,223.52,10.5545773]
[1733191477711,2.26,223.64,223.49,10.5545773]
[1733191477909,2.2358,223.6,223.52,2.2365]
[1733191478106,2.26,223.59,223.52,2.2365]
[1733191478305,2.26,223.58,223.52,2.2365]
[1733191478510,2.26,223.57,223.49,10.5545773]
[1733191478810,2.26,223.56,223.49,10.5545773]
[1733191479012,2.26,223.55,223.49,10.5545773]
[1733191479305,10.5545773,223.62,223.49,10.5545773]
[1733191479306,2.26,223.54,223.49,10.5545773]
[1733191479710,2.26,223.54,223.52,2.2365]
[1733191480113,2.26,223.54,223.49,10.5545773]
[1733191480310,2.26,223.54,223.47,11.9513773]
[1733191481715,2.26,223.54,223.49,2.2368]
[1733191482017,2.26,223.54,223.47,11.9513773]
[1733191482616,2.26,223.54,223.5,2.2367]
[1733191483508,2.26,223.54,223.52,2.2365]
[1733191483915,2.26,223.55,223.5,10.5545773]
[1733191484116,2.26,223.56,223.51,2.6409]
[1733191484807,2.26,223.56,223.53,2.2364]
[1733191485008,2.26,223.56,223.51,2.6409]
[1733191486617,13.2461773,223.65,223.53,10.5545773]
[1733191486618,10.5545773,223.65,223.53,10.5545773]
[1733191486821,2.2356,223.62,223.53,10.5545773]
[1733191487112,2.26,223.64,223.56,2.2361]
[1733191487314,2.26,223.64,223.51,2.6409]
[1733191487518,2.26,223.64,223.53,6.76756445]
[1733191487519,6.76756445,223.6,223.53,6.76756445]
[1733191487716,2.26,223.59,223.54,2.2363]
[1733191488617,2.236,223.58,223.54,2.2363]
[1733191489019,4.4959,223.59,223.54,2.2363]
[1733191489416,4.4959,223.59,223.55,2.2362]
[1733191489615,2.26,223.59,223.55,2.2362]
[1733191489917,2.26,223.59,223.55,9.00376445]
[1733191492711,2.26,223.59,223.56,2.2361]
[1733191492915,4.4959,223.59,223.56,2.2361]
[1733191493312,4.4959,223.59,223.54,6.76756445]
[1733191493519,4.4959,223.59,223.55,2.2362]
[1733191493910,2.26,223.59,223.54,6.76756445]
[1733191494114,2.26,223.59,223.56,2.2361]
[1733191495321,4.4959,223.59,223.56,2.2361]
[1733191495723,2.26,223.59,223.56,2.2361]
[1733191497614,46.56,223.71,223.51,2.6409]
[1733191497819,6.76756445,223.66,223.59,6.76756445]
[1733191498014,2.26,223.65,223.59,6.76756445]
[1733191498317,2.26,223.65,223.6,2.2357]
[1733191499022,4.4953,223.65,223.59,6.76756445]
[1733191499223,2.26,223.66,223.62,2.2355]
[1733191500218,11.26276445,223.66,223.62,2.2355]
[1733191501426,2.26,223.65,223.62,2.2355]
[1733191501627,2.2348,223.7,223.65,2.2352]
[1733191501824,2.26,223.69,223.63,6.76756445]
[1733191502026,6.76756445,223.68,223.52,2.26]
[1733191502219,6.76756445,223.66,223.52,2.26]
[1733191502419,6.76756445,223.61,223.51,2.6409]
[1733191502622,6.76756445,223.59,223.52,6.76756445]
[1733191502821,2.26,223.58,223.52,6.76756445]
[1733191503320,2.26,223.58,223.56,2.2361]
[1733191503524,2.26,223.58,223.56,6.76756445]
[1733191504130,2.26,223.58,223.51,2.6409]
[1733191504626,9.02756445,223.58,223.51,9.40846445]
[1733191505625,9.02756445,223.58,223.51,2.6409]
[1733191505921,2.26,223.58,223.53,6.76756445]
[1733191506124,2.26,223.58,223.55,2.2362]
[1733191506727,4.496,223.58,223.53,2.2364]
[1733191506930,2.26,223.58,223.51,8.08136445]
[1733191507231,11.26356445,223.58,223.53,2.2364]
[1733191508531,2.26,223.58,223.55,6.76756445]
[1733191508725,2.26,223.62,223.57,6.76756445]
[1733191508927,46.56,223.71,223.6,2.2357]
[1733191508928,2.26,223.63,223.6,2.2357]
[1733191509125,2.26,223.63,223.59,6.76756445]
[1733191510528,2.26,223.63,223.62,2.2356]
[1733191511734,6.76756445,223.7,223.64,2.2353]
[1733191512033,2.26,223.69,223.63,6.76756445]
[1733191512636,4.0667,223.77,223.65,6.76756445]
[1733191512831,6.76756445,223.73,223.65,6.76756445]
[1733191513030,2.26,223.74,223.64,2.2353]
[1733191513031,2.2348,223.7,223.64,2.2353]
[1733191513231,2.26,223.74,223.62,6.76756445]
[1733191513435,6.76756445,223.71,223.64,6.76756445]
[1733191514035,2.2346,223.72,223.66,6.76756445]
[1733191514335,4.4946,223.72,223.66,6.76756445]
[1733191515137,4.4946,223.72,223.66,9.00266445]
[1733191515538,2.26,223.72,223.66,6.76756445]
[1733191516227,2.26,223.72,223.68,2.2349]
[1733191516933,2.26,223.72,223.67,2.235]
[1733191517133,4.4946,223.72,223.67,2.235]
[1733191517430,2.26,223.72,223.66,2.2351]
[1733191517634,2.26,223.72,223.64,6.76756445]
[1733191518330,6.76756445,223.71,223.66,2.2351]
[1733191518634,6.76756445,223.69,223.62,6.76756445]
[1733191518842,6.76756445,223.67,223.6,8.08776445]
[1733191519340,9.02756445,223.67,223.6,8.08776445]
[1733191519543,2.2352,223.66,223.61,2.2356]
[1733191521239,11.26266445,223.67,223.62,2.2355]
[1733191522234,2.2352,223.66,223.61,2.2356]
[1733191523335,6.76756445,223.63,223.57,1.3202]
[1733191523733,6.76756445,223.63,223.56,8.16836445]
[1733191523734,2.26,223.62,223.56,8.16836445]
[1733191524533,2.26,223.62,223.54,9.00386445]
[1733191524534,2.2359,223.59,223.54,9.00386445]
[1733191524738,9.00346445,223.59,223.54,2.2363]
[1733191526041,2.2359,223.59,223.54,9.00386445]
[1733191526839,2.2358,223.6,223.55,2.2362]
[1733191528845,6.76756445,223.61,223.54,9.00386445]
[1733191528846,2.2359,223.59,223.54,9.00386445]
[1733191529045,6.76756445,223.59,223.52,6.76756445]
[1733191529246,2.2361,223.57,223.52,6.76756445]
[1733191529848,2.2361,223.57,223.54,6.76756445]
[1733191530148,2.2361,223.57,223.52,2.2365]
[1733191530349,2.2362,223.56,223.52,6.76756445]
[1733191530543,2.2362,223.56,223.49,1.3056]
[1733191530751,2.26,223.57,223.51,6.76756445]
[1733191531242,2.2363,223.55,223.51,6.76756445]
[1733191531443,2.26,223.57,223.51,6.76756445]
[1733191531645,9.02756445,223.57,223.51,6.76756445]
[1733191532645,2.2363,223.55,223.51,6.76756445]
[1733191533041,2.2363,223.55,223.45,1.3969]
[1733191533042,6.76756445,223.55,223.28,13.42]
[1733191533243,2.2371,223.47,223.42,9.00506445]
[1733191533442,2.26,223.47,223.32,1.3593]
[1733191533646,2.26,223.47,223.41,6.76756445]
[1733191533853,2.2372,223.46,223.36,2.2381]
[1733191534155,2.26,223.47,223.41,6.76756445]
[1733191534356,2.2376,223.42,223.36,2.2381]
[1733191534558,2.26,223.41,223.25,6.62328567]
[1733191534850,2.26,223.41,223.4,0.34107]
[1733191535454,2.26,223.44,223.4,0.34107]
[1733191535650,2.26,223.45,223.43,10.58167807]
[1733191535850,2.26,223.47,223.43,10.58167807]
[1733191536059,2.26,223.47,223.46,2.2371]
[1733191536251,2.26,223.47,223.46,12.81877807]
[1733191536959,2.26,223.47,223.46,10.58167807]
[1733191537754,2.26,223.49,223.48,2.2369]
[1733191538050,2.2365,223.53,223.46,10.58167807]
[1733191538251,2.26,223.52,223.49,10.58167807]
[1733191538658,10.58167807,223.63,223.49,10.58167807]
[1733191538855,2.26,223.62,223.51,2.2366]
[1733191539056,2.26,223.62,223.49,10.58167807]
[1733191539557,2.236,223.58,223.52,2.2365]
[1733191539857,2.26,223.57,223.52,2.2365]
[1733191540054,4.0924,223.64,223.52,10.58167807]
[1733191540260,2.2358,223.6,223.54,2.2363]
[1733191540462,4.0924,223.64,223.52,10.58167807]
[1733191540650,2.26,223.63,223.55,10.58167807]
[1733191540855,2.26,223.63,223.58,10.58167807]
[1733191541360,34.62240821,223.66,223.58,10.58167807]
[1733191541558,2.26,223.62,223.58,10.58167807]
[1733191542058,2.26,223.62,223.6,2.2357]
[1733191542260,34.62240821,223.66,223.58,10.58167807]
[1733191542560,2.26,223.65,223.61,2.2356]
[1733191542767,2.26,223.65,223.58,10.58167807]
[1733191543059,2.26,223.64,223.58,10.58167807]
[1733191543257,2.26,223.64,223.61,2.2356]
[1733191543662,2.26,223.64,223.58,10.58167807]
[1733191544255,1.4156,223.73,223.62,10.58167807]
[1733191544460,2.26,223.71,223.62,10.58167807]
[1733191544659,2.26,223.7,223.62,10.58167807]
[1733191546058,2.26,223.7,223.63,2.2354]
[1733191546059,4.4948,223.7,223.63,2.2354]
[1733191546451,4.4948,223.7,223.62,10.58167807]
[1733191546650,12.84167807,223.7,223.5,2.6679]
[1733191547053,12.84167807,223.7,223.54,10.58167807]
[1733191547258,10.58167807,223.67,223.54,10.58167807]
[1733191547559,10.58167807,223.67,223.53,1.3805]
[1733191547962,4.1067,223.69,223.54,2.2363]
[1733191547963,2.2358,223.6,223.54,2.2363]
[1733191548155,2.26,223.59,223.54,2.2363]
[1733191548361,2.26,223.58,223.53,1.3805]
[1733191548562,2.26,223.57,223.53,3.6169]
[1733191549058,2.26,223.57,223.53,1.3805]
[1733191549559,2.26,223.57,223.5,2.6679]
[1733191550060,2.26,223.57,223.53,2.2364]
[1733191550953,10.58167807,223.67,223.52,10.58167807]
[1733191551155,2.26,223.66,223.55,10.58167807]
[1733191552063,2.2356,223.62,223.56,2.2361]
[1733191552264,4.1067,223.69,223.55,10.58167807]
[1733191552463,2.26,223.68,223.58,10.58167807]
[1733191552764,2.2353,223.65,223.6,2.2357]
[1733191553065,2.26,223.67,223.61,10.58167807]
[1733191553258,10.58167807,223.73,223.61,10.58167807]
[1733191553455,2.26,223.72,223.61,10.58167807]
[1733191553654,2.26,223.72,223.63,2.2355]
[1733191553859,2.26,223.72,223.61,10.58167807]
[1733191554160,10.58167807,223.73,223.61,10.58167807]
[1733191554361,2.26,223.72,223.61,10.58167807]
[1733191555063,2.2349,223.69,223.64,2.2353]
[1733191555265,2.26,223.7,223.64,10.58167807]
[1733191555566,2.26,223.7,223.65,2.2352]
[1733191555864,2.26,223.7,223.64,10.58167807]
[1733191557063,2.2342,223.76,223.67,10.58167807]
[1733191557365,2.26,223.75,223.67,10.58167807]
[1733191557762,43.88929531,225.21,223.7,10.58167807]
[1733191557962,2.26,223.83,223.7,10.58167807]
[1733191558359,2.2338,223.8,223.73,2.2344]
[1733191558662,2.26,223.83,223.73,2.2344]
[1733191558864,2.26,223.83,223.7,10.58167807]
[1733191559065,2.2339,223.79,223.74,2.2343]
[1733191559269,2.26,223.78,223.74,2.2343]
[1733191560364,10.58167807,223.85,223.7,10.58167807]
[1733191560560,2.26,223.83,223.76,10.58167807]
[1733191560766,2.26,223.82,223.76,10.58167807]
[1733191561064,413.0978601,223.98,223.8,10.58167807]
[1733191561263,3.6205,223.94,223.83,10.58167807]
[1733191561468,2.26,223.93,223.83,10.58167807]
[1733191561665,12.84167807,223.93,223.8,10.58167807]
[1733191561870,12.84167807,223.93,223.77,10.58167807]
[1733191561871,10.58167807,223.9,223.77,10.58167807]
[1733191562065,2.2335,223.83,223.77,10.58167807]
[1733191562268,2.28,223.82,223.77,10.58167807]
[1733191562668,2.28,223.82,223.77,12.81567807]
[1733191562863,2.28,223.82,223.8,10.58167807]
[1733191563268,2.28,223.86,223.8,10.58167807]
[1733191563572,2.28,223.87,223.83,10.58167807]
[1733191565169,2.28,223.87,223.8,10.58167807]
[1733191565372,2.2334,223.84,223.8,10.58167807]
[1733191565677,2.28,223.87,223.8,10.58167807]
[1733191566370,12.86167807,223.87,223.71,3.9822]
[1733191566574,10.58167807,223.84,223.72,10.58167807]
[1733191567075,2.28,223.87,223.72,10.58167807]
[1733191567076,12.86167807,223.87,223.72,10.58167807]
[1733191567273,2.2339,223.79,223.72,10.58167807]
[1733191567474,2.28,223.78,223.72,10.58167807]
[1733191567668,10.58167807,223.87,223.75,10.58167807]
[1733191567669,2.28,223.77,223.75,10.58167807]
[1733191567873,2.28,223.77,223.75,12.81587807]
[1733191568771,2.28,223.77,223.76,2.2342]
[1733191569271,2.28,223.81,223.75,10.58167807]
[1733191569475,2.28,223.82,223.78,10.58167807]
[1733191569674,2.28,223.81,223.78,10.58167807]
[1733191570275,1.3605,223.94,223.78,10.58167807]
[1733191570276,10.58167807,223.93,223.78,10.58167807]
[1733191570476,10.58167807,223.93,223.74,10.58167807]
[1733191570477,2.28,223.92,223.82,10.58167807]
[1733191570676,2.233,223.88,223.82,12.81517807]
[1733191570873,10.58167807,223.93,223.82,12.81517807]
[1733191570874,2.28,223.87,223.82,12.81517807]
[1733191571174,2.28,223.86,223.82,10.58167807]
[1733191571375,2.28,223.85,223.82,10.58167807]
[1733191571976,2.28,223.85,223.82,12.81517807]
[1733191573080,2.28,223.85,223.83,2.2335]
[1733191573276,2.28,223.85,223.82,10.58167807]
[1733191574475,2.28,223.86,223.82,10.58167807]
[1733191574881,2.28,223.87,223.82,10.58167807]
[1733191575877,2.28,223.87,223.79,10.58167807]
[1733191576284,2.2334,223.84,223.79,10.58167807]
[1733191576482,2.28,223.87,223.79,10.58167807]
[1733191577974,12.86167807,223.87,223.71,2.6016]
[1733191578280,10.58167807,223.84,223.72,10.58167807]
[1733191578480,10.58167807,223.84,223.71,2.6016]
[1733191578481,2.6759,223.86,223.75,10.58167807]
[1733191578685,2.28,223.85,223.78,10.58167807]
[1733191578882,2.2332,223.86,223.8,2.2337]
[1733191579081,2.28,223.85,223.81,10.58167807]
[1733191580182,2.28,223.85,223.82,2.2335]
[1733191580687,2.28,223.85,223.83,2.2334]
[1733191581884,2.28,223.85,223.81,10.58167807]
[1733191582584,2.28,223.87,223.84,12.81507807]
[1733191582886,2.28,223.87,223.84,10.58167807]
[1733191583079,1.3386,223.97,223.84,10.58167807]
[1733191583283,2.28,223.96,223.87,10.58167807]
[1733191583678,2.2325,223.93,223.87,12.81467807]
[1733191584384,2.2324,223.94,223.87,10.58167807]
[1733191584579,2.28,223.95,223.93,10.58167807]
[1733191584782,0.32024,223.99,223.93,10.58167807]
[1733191584783,2.28,223.96,223.93,10.58167807]
[1733191584978,2.28,223.96,223.9,10.58167807]
[1733191585379,2.28,223.96,223.92,2.2325]
[1733191586185,2.28,223.96,223.9,10.58167807]
[1733191586387,2.28,223.96,223.93,10.58167807]
[1733191587186,2.28,223.96,223.9,10.58167807]
[1733191587685,2.2323,223.95,223.9,12.81437807]
[1733191588783,2.2324,223.94,223.9,10.58167807]
[1733191588988,2.28,223.96,223.9,10.58167807]
[1733191589488,2.28,223.96,223.92,2.2325]
[1733191591691,2.28,223.96,223.9,10.58167807]
[1733191592981,2.28,223.96,223.92,2.2325]
[1733191593186,2.28,223.96,223.93,10.58167807]
[1733191593387,2.2321,223.98,223.93,10.58167807]
[1733191593589,2.32,223.97,223.93,10.58167807]
[1733191594185,2.32,223.97,223.93,12.81407807]
[1733191595490,2.32,223.97,223.94,2.2323]
[1733191595892,2.32,223.97,223.9,10.58167807]
[1733191596090,2.32,223.97,223.86,10.58167807]
[1733191596586,2.32,223.97,223.86,12.81477807]
[1733191596587,2.2326,223.92,223.86,12.81477807]
[1733191596783,2.32,223.91,223.86,12.81477807]
[1733191596988,2.32,223.91,223.86,10.58167807]
[1733191597182,2.32,223.91,223.87,2.233]
[1733191597984,2.32,223.91,223.89,10.58167807]
[1733191598787,10.58167807,224.04,223.89,10.58167807]
[1733191598985,2.32,224.03,223.92,10.58167807]
[1733191599388,2.2317,224.01,223.92,10.58167807]
[1733191600685,2.2316,224.03,223.95,10.58167807]
[1733191600888,2.32,224.03,223.98,10.58167807]
[1733191601290,34.55824943,224.07,223.98,10.58167807]
[1733191601491,2.32,224.06,223.98,10.58167807]
[1733191601689,2.32,224.06,223.97,16.8449559]
[1733191601895,0.54027,224.09,224.02,16.8449559]
[1733191602486,0.54027,224.09,224.06,2.2311]
[1733191602891,0.54027,224.09,224.02,16.8449559]
[1733191603490,0.54027,224.09,224.07,2.231]
[1733191603689,0.54027,224.09,224.02,16.8449559]
[1733191605195,0.54027,224.09,224.06,2.2311]
[1733191605589,0.54027,224.09,224.02,16.8449559]
[1733191606287,0.54027,224.09,224.04,2.2313]
[1733191606894,0.54027,224.09,224.02,16.8449559]
[1733191607089,0.54027,224.09,223.97,16.8449559]
[1733191607090,0.54027,224.09,224.01,2.2316]
[1733191607294,0.54027,224.09,223.97,16.8449559]
[1733191607497,2.2311,224.08,224.02,2.2316]
[1733191607700,2.3,224.07,224.02,2.2316]
[1733191609305,2.3,224.07,223.97,16.8449559]
[1733191609306,2.3,224.07,224.03,2.2315]
[1733191609499,2.3,224.07,224.01,16.8449559]
[1733191609896,0.54027,224.09,224.01,16.8449559]
[1733191610098,2.84027,224.09,224.01,16.8449559]
[1733191611400,2.84027,224.09,224.05,2.2312]